[Event "Early-Titled-Tuesday-Blitz-November-28-2023"]
[Site "Chess.com"]
[Date "2023.11.28"]
[Round "11"]
[White "GoValya"]
[Black "Ziyamammadov"]
[Result "1-0"]
[WhiteElo "2197"]
[BlackElo "1891"]
[TimeControl "180+1"]
[EndTime "10:10:28 PST"]
[Termination "GoValya won by resignation"]

1. d4 {[%clk 0:03:00.9]} 1... e5 {[%clk 0:02:54.8]} 2. dxe5 {[%clk 0:02:59.2]}
2... Nc6 {[%clk 0:02:55.1]} 3. Nf3 {[%clk 0:02:59.3]} 3... Qe7 {[%clk
0:02:54.2]} 4. g3 {[%clk 0:02:54.5]} 4... Nxe5 {[%clk 0:02:53.6]} 5. Bg2 {[%clk
0:02:54.7]} 5... Nxf3+ {[%clk 0:02:53.1]} 6. Bxf3 {[%clk 0:02:54.3]} 6... Nf6
{[%clk 0:02:53.6]} 7. O-O {[%clk 0:02:54.1]} 7... Qd8 {[%clk 0:02:52.1]} 8. c4
{[%clk 0:02:52.6]} 8... d6 {[%clk 0:02:48.9]} 9. Nc3 {[%clk 0:02:52.5]} 9... Be7
{[%clk 0:02:46]} 10. Qb3 {[%clk 0:02:49.3]} 10... c6 {[%clk 0:02:34.8]} 11. Rd1
{[%clk 0:02:46.3]} 11... O-O {[%clk 0:02:19.5]} 12. Bf4 {[%clk 0:02:42]} 12...
Ne8 {[%clk 0:02:02.4]} 13. e4 {[%clk 0:02:31.1]} 13... g5 {[%clk 0:01:28.5]} 14.
Be3 {[%clk 0:02:22.1]} 14... Qc7 {[%clk 0:01:12.6]} 15. Rac1 {[%clk 0:02:06.9]}
15... Nf6 {[%clk 0:01:01.4]} 16. Bxg5 {[%clk 0:02:00.7]} 16... Bg4 {[%clk
0:00:43.7]} 17. Bxg4 {[%clk 0:01:33]} 17... Nxg4 {[%clk 0:00:44.6]} 18. Bf4
{[%clk 0:01:31.1]} 18... Rad8 {[%clk 0:00:40.3]} 19. h3 {[%clk 0:01:25.3]} 19...
Ne5 {[%clk 0:00:40.5]} 20. Bh6 {[%clk 0:01:14.2]} 20... Rfe8 {[%clk 0:00:18.6]}
21. Ne2 {[%clk 0:01:14.1]} 21... Qd7 {[%clk 0:00:18.5]} 22. Kg2 {[%clk 0:01:10]}
22... Qe6 {[%clk 0:00:17.9]} 23. Bf4 {[%clk 0:01:06.7]} 23... Qg6 {[%clk
0:00:14.6]} 24. Qc2 {[%clk 0:01:02.8]} 24... Bg5 {[%clk 0:00:12.4]} 25. Bxg5
{[%clk 0:00:57]} 25... Qxg5 {[%clk 0:00:12.9]} 26. f4 {[%clk 0:00:53.8]} 26...
Qh5 {[%clk 0:00:12.6]} 27. fxe5 {[%clk 0:00:53.5]} 27... Qxe5 {[%clk 0:00:13.5]}
28. Nf4 {[%clk 0:00:48.7]} 1-0

[Event "Early-Titled-Tuesday-Blitz-November-28-2023"]
[Site "Chess.com"]
[Date "2023.11.28"]
[Round "11"]
[White "Bodhanas"]
[Black "noblerone"]
[Result "1-0"]
[WhiteElo "2233"]
[BlackElo "2477"]
[TimeControl "180+1"]
[EndTime "10:10:38 PST"]
[Termination "Bodhanas won on time"]

1. d4 {[%clk 0:02:59.8]} 1... d5 {[%clk 0:02:52.4]} 2. Nf3 {[%clk 0:02:59.8]}
2... Nf6 {[%clk 0:02:52.2]} 3. Bf4 {[%clk 0:02:59.5]} 3... c5 {[%clk 0:02:52.4]}
4. e3 {[%clk 0:02:56.8]} 4... Nc6 {[%clk 0:02:52.6]} 5. c3 {[%clk 0:02:56.4]}
5... Qb6 {[%clk 0:02:47.5]} 6. Qb3 {[%clk 0:02:51.1]} 6... c4 {[%clk 0:02:47.9]}
7. Qc2 {[%clk 0:02:50.4]} 7... Bf5 {[%clk 0:02:33.1]} 8. Qc1 {[%clk 0:02:48.8]}
8... e6 {[%clk 0:02:33]} 9. Be2 {[%clk 0:02:47.9]} 9... h6 {[%clk 0:02:33.9]}
10. Nbd2 {[%clk 0:02:45.6]} 10... Be7 {[%clk 0:02:23.4]} 11. b3 {[%clk
0:02:38.3]} 11... cxb3 {[%clk 0:02:19.8]} 12. axb3 {[%clk 0:02:38]} 12... O-O
{[%clk 0:02:18.3]} 13. O-O {[%clk 0:02:37]} 13... Ne4 {[%clk 0:02:17.7]} 14. b4
{[%clk 0:02:20.3]} 14... Rac8 {[%clk 0:02:14.1]} 15. Nxe4 {[%clk 0:02:19.2]}
15... Bxe4 {[%clk 0:02:13.9]} 16. Nd2 {[%clk 0:02:16.1]} 16... Bg6 {[%clk
0:01:56.4]} 17. Qb2 {[%clk 0:02:06.7]} 17... a5 {[%clk 0:01:34.2]} 18. b5 {[%clk
0:02:02.5]} 18... Na7 {[%clk 0:01:04]} 19. Nb3 {[%clk 0:01:58.8]} 19... Bd6
{[%clk 0:00:20.6]} 20. Bxd6 {[%clk 0:01:55.3]} 20... Qxd6 {[%clk 0:00:21.5]} 21.
Rxa5 {[%clk 0:01:54.1]} 21... Qb6 {[%clk 0:00:17.2]} 22. Rfa1 {[%clk 0:01:52.8]}
22... Ra8 {[%clk 0:00:13.2]} 23. Qa2 {[%clk 0:01:46]} 23... Rfc8 {[%clk
0:00:12.7]} 24. Rxa7 {[%clk 0:01:43.1]} 24... Rxa7 {[%clk 0:00:12]} 25. Qxa7
{[%clk 0:01:42.9]} 25... Qxa7 {[%clk 0:00:11.6]} 26. Rxa7 {[%clk 0:01:40.9]}
26... Rxc3 {[%clk 0:00:12.5]} 27. Nd2 {[%clk 0:01:28.5]} 27... Rc2 {[%clk
0:00:07.5]} 28. h3 {[%clk 0:01:17.7]} 28... Rxd2 {[%clk 0:00:07.1]} 29. Bf3
{[%clk 0:01:17.5]} 29... Rb2 {[%clk 0:00:02.9]} 30. Rxb7 {[%clk 0:01:17.1]}
30... Be4 {[%clk 0:00:01.5]} 31. Bxe4 {[%clk 0:01:15.6]} 31... dxe4 {[%clk
0:00:02.4]} 32. g4 {[%clk 0:01:14.9]} 32... g5 {[%clk 0:00:02.3]} 33. Kg2 {[%clk
0:01:15.1]} 33... Kg7 {[%clk 0:00:02.7]} 34. Kg3 {[%clk 0:01:15.1]} 34... Kg6
{[%clk 0:00:02.5]} 35. f3 {[%clk 0:01:15]} 35... exf3 {[%clk 0:00:02.3]} 36.
Kxf3 {[%clk 0:01:14.9]} 36... Rh2 {[%clk 0:00:02.4]} 37. b6 {[%clk 0:01:05.6]}
1-0

[Event "Early-Titled-Tuesday-Blitz-November-28-2023"]
[Site "Chess.com"]
[Date "2023.11.28"]
[Round "11"]
[White "Mikhail_Golubev"]
[Black "vladgoncharov"]
[Result "0-1"]
[WhiteElo "2579"]
[BlackElo "2632"]
[TimeControl "180+1"]
[EndTime "10:10:44 PST"]
[Termination "vladgoncharov won by resignation"]

1. e4 {[%clk 0:03:00.9]} 1... e6 {[%clk 0:02:58.2]} 2. d4 {[%clk 0:03:00]} 2...
d5 {[%clk 0:02:58.5]} 3. Nc3 {[%clk 0:03:00.6]} 3... Nc6 {[%clk 0:02:57.5]} 4.
Nf3 {[%clk 0:02:55.4]} 4... Nf6 {[%clk 0:02:56.7]} 5. e5 {[%clk 0:02:38]} 5...
Ne4 {[%clk 0:02:56.3]} 6. Bd3 {[%clk 0:02:38]} 6... Bb4 {[%clk 0:02:51.4]} 7.
O-O {[%clk 0:02:36.5]} 7... Nxc3 {[%clk 0:02:49.6]} 8. bxc3 {[%clk 0:02:36.6]}
8... Bxc3 {[%clk 0:02:49.4]} 9. Rb1 {[%clk 0:02:36.9]} 9... Bb4 {[%clk
0:02:15.4]} 10. Ng5 {[%clk 0:02:15.1]} 10... Be7 {[%clk 0:02:07.1]} 11. Qh5
{[%clk 0:02:11.8]} 11... g6 {[%clk 0:01:47.8]} 12. Qh6 {[%clk 0:02:11.2]} 12...
Bf8 {[%clk 0:01:47.3]} 13. Qh3 {[%clk 0:02:03]} 13... Bg7 {[%clk 0:01:45.3]} 14.
Nxh7 {[%clk 0:01:51.3]} 14... Nxd4 {[%clk 0:01:38]} 15. Rb4 {[%clk 0:01:18]}
15... c5 {[%clk 0:01:34.9]} 16. Rxd4 {[%clk 0:01:17.3]} 16... cxd4 {[%clk
0:01:34.7]} 17. Ba3 {[%clk 0:01:00.7]} 17... Bd7 {[%clk 0:01:27.6]} 18. f4
{[%clk 0:00:55.4]} 18... Rc8 {[%clk 0:01:21.1]} 19. f5 {[%clk 0:00:39]} 19...
exf5 {[%clk 0:01:19.3]} 20. e6 {[%clk 0:00:32.6]} 20... Bxe6 {[%clk 0:01:17.3]}
21. Bb5+ {[%clk 0:00:26.9]} 21... Rc6 {[%clk 0:01:15.3]} 22. Bxc6+ {[%clk
0:00:21.9]} 22... bxc6 {[%clk 0:01:15.2]} 23. Rb1 {[%clk 0:00:21.7]} 23... Be5
{[%clk 0:01:03.6]} 24. Bc5 {[%clk 0:00:21.6]} 24... Qa5 {[%clk 0:00:56]} 25. Bb4
{[%clk 0:00:17.5]} 25... Qb5 {[%clk 0:00:51.4]} 26. Qh4 {[%clk 0:00:16.5]} 26...
c5 {[%clk 0:00:51.4]} 27. a4 {[%clk 0:00:14.4]} 27... Qb8 {[%clk 0:00:44.7]} 28.
Nf6+ {[%clk 0:00:13]} 28... Bxf6 {[%clk 0:00:43.5]} 29. Qxf6 {[%clk 0:00:12.9]}
29... Qxh2+ {[%clk 0:00:43.5]} 30. Kf1 {[%clk 0:00:11.9]} 30... Qf4+ {[%clk
0:00:42.6]} 31. Ke2 {[%clk 0:00:10.1]} 31... Qe3+ {[%clk 0:00:42.5]} 0-1

[Event "Early-Titled-Tuesday-Blitz-November-28-2023"]
[Site "Chess.com"]
[Date "2023.11.28"]
[Round "11"]
[White "LizardMorrison"]
[Black "Magila31"]
[Result "0-1"]
[WhiteElo "2207"]
[BlackElo "2361"]
[TimeControl "180+1"]
[EndTime "10:10:48 PST"]
[Termination "Magila31 won by resignation"]

1. Nc3 {[%clk 0:02:59.5]} 1... c5 {[%clk 0:02:57.5]} 2. Nb1 {[%clk 0:02:58.9]}
2... b6 {[%clk 0:02:54.4]} 3. Nf3 {[%clk 0:02:58.8]} 3... Bb7 {[%clk 0:02:53.7]}
4. Ng1 {[%clk 0:02:59.3]} 4... g6 {[%clk 0:02:52]} 5. Nf3 {[%clk 0:02:59.4]}
5... Bg7 {[%clk 0:02:51.5]} 6. g3 {[%clk 0:03:00]} 6... Nf6 {[%clk 0:02:51]} 7.
Bg2 {[%clk 0:03:00.5]} 7... O-O {[%clk 0:02:51.4]} 8. O-O {[%clk 0:03:01.2]}
8... d5 {[%clk 0:02:47.6]} 9. d3 {[%clk 0:02:59.8]} 9... Nbd7 {[%clk 0:02:45.1]}
10. c4 {[%clk 0:03:00]} 10... d4 {[%clk 0:02:44.3]} 11. Na3 {[%clk 0:02:56.8]}
11... e5 {[%clk 0:02:43.1]} 12. Nc2 {[%clk 0:02:56.7]} 12... Rb8 {[%clk
0:02:32.7]} 13. a3 {[%clk 0:02:52.5]} 13... e4 {[%clk 0:02:30.9]} 14. dxe4
{[%clk 0:02:50.2]} 14... Nxe4 {[%clk 0:02:25]} 15. Nce1 {[%clk 0:02:39.5]} 15...
Ne5 {[%clk 0:02:16.3]} 16. Nxe5 {[%clk 0:02:32.5]} 16... Bxe5 {[%clk 0:02:15.5]}
17. Nd3 {[%clk 0:02:32.8]} 17... Bc7 {[%clk 0:02:10]} 18. Bf4 {[%clk 0:02:30.9]}
18... Re8 {[%clk 0:02:06.6]} 19. Bxc7 {[%clk 0:02:29.1]} 19... Qxc7 {[%clk
0:02:06.2]} 20. Nf4 {[%clk 0:02:18.3]} 20... Rbd8 {[%clk 0:02:01.5]} 21. Qd3
{[%clk 0:02:14.7]} 21... a5 {[%clk 0:01:46]} 22. h4 {[%clk 0:01:58.8]} 22... h6
{[%clk 0:01:41.1]} 23. h5 {[%clk 0:01:49.7]} 23... g5 {[%clk 0:01:39.2]} 24. Nd5
{[%clk 0:01:49.9]} 24... Bxd5 {[%clk 0:01:39.1]} 25. cxd5 {[%clk 0:01:46.4]}
25... Nf6 {[%clk 0:01:39]} 26. Qf5 {[%clk 0:01:43.7]} 26... Qe5 {[%clk
0:01:36.2]} 27. Qxe5 {[%clk 0:01:30.1]} 27... Rxe5 {[%clk 0:01:35.5]} 28. f4
{[%clk 0:01:30.7]} 28... gxf4 {[%clk 0:01:15.4]} 29. Rxf4 {[%clk 0:01:26.5]}
29... Nxh5 {[%clk 0:01:15.5]} 30. Rg4+ {[%clk 0:01:22.7]} 30... Rg5 {[%clk
0:01:14.9]} 31. Rxg5+ {[%clk 0:01:22]} 31... hxg5 {[%clk 0:01:14.4]} 32. Kf2
{[%clk 0:01:21]} 32... Nf6 {[%clk 0:01:12.8]} 33. e4 {[%clk 0:01:18.6]} 33...
dxe3+ {[%clk 0:01:11.5]} 34. Kxe3 {[%clk 0:01:18.8]} 34... Nxd5+ {[%clk
0:01:11.8]} 35. Ke4 {[%clk 0:01:19.4]} 35... Ne7 {[%clk 0:01:06.7]} 36. Rh1
{[%clk 0:01:08.7]} 36... Kg7 {[%clk 0:01:03.3]} 37. Ke3 {[%clk 0:01:05]} 37...
Nf5+ {[%clk 0:00:58.7]} 38. Kf3 {[%clk 0:00:59.5]} 38... Rd2 {[%clk 0:00:51.2]}
39. Kg4 {[%clk 0:00:59.5]} 39... Ne3+ {[%clk 0:00:47]} 40. Kxg5 {[%clk
0:00:59.8]} 40... Rxg2 {[%clk 0:00:46.9]} 41. g4 {[%clk 0:00:57.3]} 41... Rxg4+
{[%clk 0:00:45.9]} 42. Kh5 {[%clk 0:00:57.9]} 42... Rg2 {[%clk 0:00:39.7]} 43.
b4 {[%clk 0:00:56]} 43... Nf5 {[%clk 0:00:37.6]} 44. Rh3 {[%clk 0:00:46.2]}
44... Kf6 {[%clk 0:00:36.2]} 45. Rg3 {[%clk 0:00:43.1]} 45... Rxg3 {[%clk
0:00:33.8]} 0-1

[Event "Early-Titled-Tuesday-Blitz-November-28-2023"]
[Site "Chess.com"]
[Date "2023.11.28"]
[Round "11"]
[White "DawidCzerw"]
[Black "Zavgorodniy_Sergiy"]
[Result "1-0"]
[WhiteElo "2555"]
[BlackElo "2679"]
[TimeControl "180+1"]
[EndTime "10:10:49 PST"]
[Termination "DawidCzerw won by resignation"]

1. e4 {[%clk 0:03:00.9]} 1... e5 {[%clk 0:02:59.9]} 2. Nf3 {[%clk 0:03:01]} 2...
d6 {[%clk 0:03:00.1]} 3. Nc3 {[%clk 0:03:00.1]} 3... Nf6 {[%clk 0:02:59.2]} 4.
d4 {[%clk 0:02:58.8]} 4... exd4 {[%clk 0:02:58.8]} 5. Nxd4 {[%clk 0:02:59.4]}
5... Be7 {[%clk 0:02:59.3]} 6. g3 {[%clk 0:02:57.9]} 6... Bg4 {[%clk 0:02:59.1]}
7. f3 {[%clk 0:02:56]} 7... Bd7 {[%clk 0:02:58.4]} 8. Bg2 {[%clk 0:02:55.1]}
8... c5 {[%clk 0:02:57.4]} 9. Nde2 {[%clk 0:02:54.2]} 9... b5 {[%clk 0:02:57.9]}
10. O-O {[%clk 0:02:52.5]} 10... Bc6 {[%clk 0:02:56.8]} 11. Be3 {[%clk 0:02:48]}
11... O-O {[%clk 0:02:55.1]} 12. h3 {[%clk 0:02:47.5]} 12... Nbd7 {[%clk
0:02:43.8]} 13. f4 {[%clk 0:02:45.6]} 13... b4 {[%clk 0:02:43.3]} 14. Nd5 {[%clk
0:02:44.4]} 14... Nxd5 {[%clk 0:02:35.6]} 15. exd5 {[%clk 0:02:42.1]} 15... Bb5
{[%clk 0:02:35.1]} 16. a4 {[%clk 0:02:34.6]} 16... Ba6 {[%clk 0:02:27.2]} 17.
Re1 {[%clk 0:02:31.6]} 17... Bf6 {[%clk 0:02:25.9]} 18. Rb1 {[%clk 0:02:29.1]}
18... Re8 {[%clk 0:02:18]} 19. Bf2 {[%clk 0:02:19.3]} 19... b3 {[%clk 0:02:05]}
20. c3 {[%clk 0:02:12.5]} 20... Rb8 {[%clk 0:01:54.2]} 21. g4 {[%clk 0:02:12.1]}
21... h6 {[%clk 0:01:49.1]} 22. Ng3 {[%clk 0:02:08.1]} 22... Rxe1+ {[%clk
0:01:42.8]} 23. Qxe1 {[%clk 0:02:05.2]} 23... Bd3 {[%clk 0:01:35.5]} 24. Rd1
{[%clk 0:02:03.3]} 24... Bc2 {[%clk 0:01:35.6]} 25. Rd2 {[%clk 0:01:57.3]} 25...
Nb6 {[%clk 0:01:34.8]} 26. Be4 {[%clk 0:01:34.8]} 26... Nc4 {[%clk 0:01:24.8]}
27. Re2 {[%clk 0:01:28.5]} 27... Nxb2 {[%clk 0:01:16.8]} 28. Bxc2 {[%clk
0:01:12.6]} 28... bxc2 {[%clk 0:01:15]} 29. Rxc2 {[%clk 0:01:13.5]} 29... Nd3
{[%clk 0:01:09.2]} 30. Qe3 {[%clk 0:01:12.1]} 30... Rb1+ {[%clk 0:00:54.7]} 31.
Kg2 {[%clk 0:01:09.2]} 31... Nxf2 {[%clk 0:00:43.8]} 32. Rxf2 {[%clk 0:01:06.3]}
32... Bh4 {[%clk 0:00:42.6]} 33. Re2 {[%clk 0:00:57.9]} 33... Bxg3 {[%clk
0:00:37.6]} 34. Kxg3 {[%clk 0:00:56.9]} 34... Qf6 {[%clk 0:00:23.9]} 35. Qe8+
{[%clk 0:00:49.3]} 35... Kh7 {[%clk 0:00:24.1]} 36. Qe4+ {[%clk 0:00:49.4]}
36... Qg6 {[%clk 0:00:24.2]} 37. f5 {[%clk 0:00:49.6]} 37... Qf6 {[%clk
0:00:23.5]} 38. Qxb1 {[%clk 0:00:46.3]} 38... Qxc3+ {[%clk 0:00:22.4]} 39. Kg2
{[%clk 0:00:44.2]} 1-0

[Event "Early-Titled-Tuesday-Blitz-November-28-2023"]
[Site "Chess.com"]
[Date "2023.11.28"]
[Round "11"]
[White "HATilay"]
[Black "Crasmus"]
[Result "1-0"]
[WhiteElo "2525"]
[BlackElo "2301"]
[TimeControl "180+1"]
[EndTime "10:10:51 PST"]
[Termination "HATilay won by checkmate"]

1. d4 {[%clk 0:02:57]} 1... c5 {[%clk 0:03:00.9]} 2. d5 {[%clk 0:02:54.2]} 2...
e5 {[%clk 0:03:00.4]} 3. e4 {[%clk 0:02:53.5]} 3... d6 {[%clk 0:03:00.8]} 4. Nf3
{[%clk 0:02:52.9]} 4... g6 {[%clk 0:03:01.2]} 5. Bb5+ {[%clk 0:02:53.1]} 5...
Nd7 {[%clk 0:03:00.4]} 6. a4 {[%clk 0:02:53.4]} 6... Bg7 {[%clk 0:03:00.5]} 7.
O-O {[%clk 0:02:53.7]} 7... a6 {[%clk 0:03:00.1]} 8. Bd3 {[%clk 0:02:52.9]} 8...
f5 {[%clk 0:02:59.4]} 9. exf5 {[%clk 0:02:53]} 9... gxf5 {[%clk 0:02:59.5]} 10.
Bxf5 {[%clk 0:02:53.3]} 10... Ngf6 {[%clk 0:02:59.4]} 11. Nc3 {[%clk 0:02:42.1]}
11... O-O {[%clk 0:02:59.2]} 12. Be6+ {[%clk 0:02:42.5]} 12... Kh8 {[%clk
0:02:59.7]} 13. Ng5 {[%clk 0:02:43.1]} 13... Qe7 {[%clk 0:02:58.3]} 14. Nge4
{[%clk 0:02:41.6]} 14... Nxe4 {[%clk 0:02:56.5]} 15. Nxe4 {[%clk 0:02:41.4]}
15... Nf6 {[%clk 0:02:57.4]} 16. Ng5 {[%clk 0:02:32.9]} 16... h6 {[%clk
0:02:44.3]} 17. Bxc8 {[%clk 0:02:31.4]} 17... Raxc8 {[%clk 0:02:33.8]} 18. Ne6
{[%clk 0:02:31.3]} 18... Rg8 {[%clk 0:02:29.9]} 19. f4 {[%clk 0:02:31.2]} 19...
Nd7 {[%clk 0:02:22.8]} 20. f5 {[%clk 0:02:21]} 20... Nf6 {[%clk 0:02:22.7]} 21.
c4 {[%clk 0:02:20.6]} 21... b5 {[%clk 0:02:20.8]} 22. axb5 {[%clk 0:02:20]}
22... axb5 {[%clk 0:02:21.7]} 23. b3 {[%clk 0:02:18]} 23... bxc4 {[%clk
0:02:21.2]} 24. bxc4 {[%clk 0:02:18.6]} 24... Rb8 {[%clk 0:02:20]} 25. Rf3
{[%clk 0:02:15.5]} 25... Rb4 {[%clk 0:02:16.5]} 26. Rh3 {[%clk 0:02:16.1]} 26...
Kh7 {[%clk 0:02:13.9]} 27. Qd2 {[%clk 0:02:09.9]} 27... Ng4 {[%clk 0:02:08.8]}
28. Qe2 {[%clk 0:01:40.3]} 28... Bf8 {[%clk 0:01:54.8]} 29. Rg3 {[%clk
0:01:16.8]} 29... Nf6 {[%clk 0:01:34.6]} 30. Rxg8 {[%clk 0:01:11.7]} 30... Nxg8
{[%clk 0:01:28.3]} 31. Qg4 {[%clk 0:01:06.9]} 31... Rb7 {[%clk 0:01:01.3]} 32.
Qg6+ {[%clk 0:00:51.8]} 32... Kh8 {[%clk 0:01:01.1]} 33. Ra8 {[%clk 0:00:52]}
33... Bg7 {[%clk 0:00:55.1]} 34. Bg5 {[%clk 0:00:28.8]} 34... Rb1+ {[%clk
0:00:54.9]} 35. Kf2 {[%clk 0:00:28.8]} 35... Rb2+ {[%clk 0:00:48.5]} 36. Kf3
{[%clk 0:00:28.1]} 36... Rb3+ {[%clk 0:00:48.4]} 37. Kg4 {[%clk 0:00:28.2]}
37... hxg5 {[%clk 0:00:37.5]} 38. Qh5+ {[%clk 0:00:28]} 38... Bh6 {[%clk
0:00:36.5]} 39. Qxh6+ {[%clk 0:00:26.6]} 39... Qh7 {[%clk 0:00:35.6]} 40. Rxg8+
{[%clk 0:00:27.2]} 40... Kxg8 {[%clk 0:00:35.2]} 41. Qf8# {[%clk 0:00:27.9]} 1-0

[Event "Early-Titled-Tuesday-Blitz-November-28-2023"]
[Site "Chess.com"]
[Date "2023.11.28"]
[Round "11"]
[White "jamengrand"]
[Black "masenik"]
[Result "1-0"]
[WhiteElo "2300"]
[BlackElo "2493"]
[TimeControl "180+1"]
[EndTime "10:10:52 PST"]
[Termination "jamengrand won by resignation"]

1. e4 {[%clk 0:03:00.9]} 1... c5 {[%clk 0:02:55.7]} 2. Nf3 {[%clk 0:03:00.7]}
2... e6 {[%clk 0:02:54.2]} 3. d4 {[%clk 0:03:01]} 3... cxd4 {[%clk 0:02:54.6]}
4. Bg5 {[%clk 0:03:01.5]} 4... Qa5+ {[%clk 0:02:45.8]} 5. c3 {[%clk 0:03:01.1]}
5... Nc6 {[%clk 0:02:37.5]} 6. b4 {[%clk 0:02:57.4]} 6... Qb6 {[%clk 0:02:35.1]}
7. b5 {[%clk 0:02:57]} 7... Na5 {[%clk 0:02:27.4]} 8. Bd3 {[%clk 0:02:50.9]}
8... dxc3 {[%clk 0:02:25.1]} 9. Nxc3 {[%clk 0:02:50.8]} 9... Bb4 {[%clk
0:02:25.8]} 10. Rc1 {[%clk 0:02:51]} 10... Ne7 {[%clk 0:02:13.4]} 11. O-O {[%clk
0:02:50]} 11... d6 {[%clk 0:02:12.9]} 12. Bxe7 {[%clk 0:02:23.9]} 12... Kxe7
{[%clk 0:02:11.5]} 13. Na4 {[%clk 0:02:17.4]} 13... Qd8 {[%clk 0:02:11]} 14. e5
{[%clk 0:02:07.9]} 14... b6 {[%clk 0:01:51.5]} 15. exd6+ {[%clk 0:01:46.9]}
15... Bxd6 {[%clk 0:01:46.8]} 16. Be4 {[%clk 0:01:43.9]} 16... Bb7 {[%clk
0:01:46.5]} 17. Qe2 {[%clk 0:01:42]} 17... Bxe4 {[%clk 0:01:24.2]} 18. Qxe4
{[%clk 0:01:41.6]} 18... Rc8 {[%clk 0:01:25]} 19. Nd4 {[%clk 0:01:35.1]} 19...
Bc5 {[%clk 0:01:01.5]} 20. Nf5+ {[%clk 0:01:28.8]} 20... Kf6 {[%clk 0:00:56.6]}
21. Nxc5 {[%clk 0:01:13.8]} 21... Rxc5 {[%clk 0:00:53.8]} 22. Rxc5 {[%clk
0:01:12.8]} 22... bxc5 {[%clk 0:00:54.4]} 23. Ng3 {[%clk 0:00:37.1]} 23... Qd4
{[%clk 0:00:54.3]} 24. Qf3+ {[%clk 0:00:27.9]} 24... Ke7 {[%clk 0:00:54.5]} 25.
Rd1 {[%clk 0:00:27.9]} 25... Qc4 {[%clk 0:00:45.9]} 26. Qe3 {[%clk 0:00:22.5]}
26... Qxb5 {[%clk 0:00:21.1]} 27. Qg5+ {[%clk 0:00:21.5]} 1-0

[Event "Early-Titled-Tuesday-Blitz-November-28-2023"]
[Site "Chess.com"]
[Date "2023.11.28"]
[Round "11"]
[White "kai_nov"]
[Black "Gyulamiryan-koryun"]
[Result "1-0"]
[WhiteElo "2235"]
[BlackElo "1935"]
[TimeControl "180+1"]
[EndTime "10:10:52 PST"]
[Termination "kai_nov won on time"]

1. d4 {[%clk 0:03:00.9]} 1... Nf6 {[%clk 0:02:58.7]} 2. Nc3 {[%clk 0:02:58.9]}
2... g6 {[%clk 0:02:56.5]} 3. Bg5 {[%clk 0:02:58.4]} 3... Bg7 {[%clk 0:02:55.9]}
4. Nf3 {[%clk 0:02:57.1]} 4... O-O {[%clk 0:02:55.8]} 5. e4 {[%clk 0:02:57.1]}
5... d6 {[%clk 0:02:54.6]} 6. Bd3 {[%clk 0:02:52.5]} 6... Bg4 {[%clk 0:02:54]}
7. O-O {[%clk 0:02:51.7]} 7... Bxf3 {[%clk 0:02:52.2]} 8. Qxf3 {[%clk
0:02:50.8]} 8... Nbd7 {[%clk 0:02:50.8]} 9. Rfe1 {[%clk 0:02:44.6]} 9... c6
{[%clk 0:02:50.3]} 10. e5 {[%clk 0:02:43.2]} 10... dxe5 {[%clk 0:02:49.2]} 11.
dxe5 {[%clk 0:02:43.3]} 11... Ne8 {[%clk 0:02:45.2]} 12. Bf4 {[%clk 0:02:31]}
12... Nc5 {[%clk 0:02:41.3]} 13. Bc4 {[%clk 0:02:25.2]} 13... e6 {[%clk
0:02:31.6]} 14. Rad1 {[%clk 0:02:14.8]} 14... Qa5 {[%clk 0:02:25.3]} 15. a3
{[%clk 0:02:07.6]} 15... Qc7 {[%clk 0:02:04.6]} 16. b4 {[%clk 0:02:05.9]} 16...
Nd7 {[%clk 0:01:57.7]} 17. Qg3 {[%clk 0:02:00]} 17... b5 {[%clk 0:01:49.6]} 18.
Bb3 {[%clk 0:01:58.1]} 18... a5 {[%clk 0:01:48.9]} 19. Ne4 {[%clk 0:01:44.4]}
19... a4 {[%clk 0:01:38.5]} 20. Ba2 {[%clk 0:01:42.9]} 20... c5 {[%clk
0:01:15.8]} 21. Nf6+ {[%clk 0:01:34]} 21... Kh8 {[%clk 0:01:07.2]} 22. Nxd7
{[%clk 0:01:20.7]} 22... Rg8 {[%clk 0:01:05.9]} 23. Nxc5 {[%clk 0:01:19.6]}
23... Bf8 {[%clk 0:00:55.2]} 24. Rd7 {[%clk 0:01:15]} 24... Qc6 {[%clk 0:00:51]}
25. Rxf7 {[%clk 0:01:13.5]} 25... Bxc5 {[%clk 0:00:44.4]} 26. bxc5 {[%clk
0:01:06.1]} 26... Ng7 {[%clk 0:00:41.6]} 27. Bh6 {[%clk 0:01:00.7]} 27... Qxc5
{[%clk 0:00:28.8]} 28. Qf3 {[%clk 0:00:46.9]} 28... Rae8 {[%clk 0:00:20.4]} 29.
Qf6 {[%clk 0:00:42.8]} 1-0

[Event "Early-Titled-Tuesday-Blitz-November-28-2023"]
[Site "Chess.com"]
[Date "2023.11.28"]
[Round "11"]
[White "Qvalda"]
[Black "GeorgiosSouleidis"]
[Result "1-0"]
[WhiteElo "2441"]
[BlackElo "2600"]
[TimeControl "180+1"]
[EndTime "10:10:55 PST"]
[Termination "Qvalda won on time"]

1. Nf3 {[%clk 0:02:57.5]} 1... Nf6 {[%clk 0:02:59.8]} 2. g3 {[%clk 0:02:56.1]}
2... g6 {[%clk 0:03:00.3]} 3. b3 {[%clk 0:02:54.3]} 3... Bg7 {[%clk 0:02:57.7]}
4. Bb2 {[%clk 0:02:54.8]} 4... O-O {[%clk 0:02:57.9]} 5. Bg2 {[%clk 0:02:54.9]}
5... c5 {[%clk 0:02:55.5]} 6. c4 {[%clk 0:02:54.7]} 6... d5 {[%clk 0:02:49.4]}
7. cxd5 {[%clk 0:02:53.6]} 7... Nxd5 {[%clk 0:02:50]} 8. Bxg7 {[%clk 0:02:54]}
8... Kxg7 {[%clk 0:02:50.9]} 9. d4 {[%clk 0:02:54.2]} 9... cxd4 {[%clk
0:02:39.6]} 10. Qxd4+ {[%clk 0:02:55.1]} 10... Nf6 {[%clk 0:02:37.9]} 11. O-O
{[%clk 0:02:55]} 11... Nc6 {[%clk 0:02:38]} 12. Qb2 {[%clk 0:02:51.4]} 12... Qa5
{[%clk 0:02:21.9]} 13. Nbd2 {[%clk 0:02:46.6]} 13... Qh5 {[%clk 0:02:21]} 14. b4
{[%clk 0:02:33.2]} 14... Bh3 {[%clk 0:02:04.8]} 15. b5 {[%clk 0:02:32.4]} 15...
Bxg2 {[%clk 0:02:04.6]} 16. Kxg2 {[%clk 0:02:31]} 16... Nd8 {[%clk 0:01:55.1]}
17. Rac1 {[%clk 0:02:27.6]} 17... Ne6 {[%clk 0:01:55.2]} 18. Rc4 {[%clk
0:02:19.4]} 18... Rfd8 {[%clk 0:01:50.8]} 19. Rfc1 {[%clk 0:02:06.2]} 19... Rd7
{[%clk 0:01:46.5]} 20. Ne4 {[%clk 0:02:04.7]} 20... Qd5 {[%clk 0:01:29.3]} 21.
Nxf6 {[%clk 0:01:59.9]} 21... exf6 {[%clk 0:01:30.2]} 22. e4 {[%clk 0:01:51.5]}
22... Qd3 {[%clk 0:01:10.7]} 23. R1c3 {[%clk 0:01:46.1]} 23... Qd1 {[%clk
0:01:08.6]} 24. Rc8 {[%clk 0:01:36.7]} 24... Rxc8 {[%clk 0:01:08]} 25. Rxc8
{[%clk 0:01:37.6]} 25... Qd3 {[%clk 0:01:02.3]} 26. Qb4 {[%clk 0:01:19.6]} 26...
h6 {[%clk 0:00:41]} 27. h4 {[%clk 0:01:13.7]} 27... b6 {[%clk 0:00:35.8]} 28. h5
{[%clk 0:01:10.7]} 28... g5 {[%clk 0:00:32.2]} 29. a4 {[%clk 0:01:05.8]} 29...
Rd8 {[%clk 0:00:22.9]} 30. Rxd8 {[%clk 0:01:01.5]} 30... Qxd8 {[%clk 0:00:23.8]}
31. Qc3 {[%clk 0:00:58.8]} 31... Qd1 {[%clk 0:00:18.8]} 32. a5 {[%clk
0:00:51.4]} 32... Qe2 {[%clk 0:00:11.1]} 33. axb6 {[%clk 0:00:49]} 33... axb6
{[%clk 0:00:12]} 34. Qc6 {[%clk 0:00:41]} 1-0